fUST/lending_fUST_20240609
["ID","MTS","AMOUNT","RATE_DAILY","PERIOD"]
[328867761,1717925442971,-8658.75067628,0.00016125,2]
[328867796,1717925444638,-654.40941547,0.00016125,2]
[328867797,1717925444800,-4686.07835599,0.00016125,2]
[328867798,1717925444810,-1911.02618015,0.00016271,2]
[328867799,1717925444820,-3000.0,0.00016272,2]
[328867800,1717925444831,-335.108791,0.00016414,2]
[328867801,1717925444841,-628.744627,0.00016422,2]
[328867802,1717925444850,-918.657751,0.00016488,2]
[328867803,1717925444860,-272.44632851,0.00016587,2]
[328867804,1717925444870,-155.73748382,0.00016587,2]
[328867805,1717925444880,-154.98450155,0.00016587,2]
[328867806,1717925444890,-1444.37802936,0.00016587,2]
[328867807,1717925444900,-199.30263298,0.00016587,2]
[328867808,1717925444909,-238.8015218,0.00016588,2]
[328867809,1717925444919,-923.79132463,0.00016928,2]
[328867810,1717925444931,-166.666666,0.00016986,2]
[328867811,1717925444941,-1489.25058331,0.00017625,2]
[328867812,1717925444951,-153.0,0.000177,2]
[328867813,1717925444961,-306.0,0.000177,2]
[328867814,1717925444971,-1431.85075183,0.00017719,2]
[328867815,1717925444981,-734.52298288,0.0001772,2]
[328867816,1717925444991,-734.52298288,0.0001774,2]
[328867817,1717925445002,-734.52298288,0.0001776,2]
[328867818,1717925445012,-734.52298288,0.0001778,2]
[328867819,1717925445022,-734.52298288,0.000178,2]
[328867820,1717925445032,-1034.07042792,0.00017819,2]
[328867821,1717925445042,-620.58698972,0.00017819,2]
[328867822,1717925445052,-155.10660404,0.00017819,2]
[328867823,1717925445062,-155.00951886,0.00017819,2]
[328867824,1717925445072,-187.78108932,0.00017819,2]
[328867825,1717925445082,-195.02314914,0.00017819,2]
[328867826,1717925445092,-1500.82055846,0.00017819,2]
[328867827,1717925445102,-156.91563212,0.00017819,2]
[328867828,1717925445112,-1527.74841315,0.0001782,7]
[328867829,1717925445124,-866.99658074,0.0001782,2]
[328867830,1717925445137,-327.80202897,0.0001782,2]
[328867887,1717925447852,-172.19797103,0.0001782,2]
[328867889,1717925447863,-427.62064234,0.0001782,2]
[328867899,1717925447973,-256.20935766,0.0001782,2]
[328867901,1717925447983,-500.0,0.0001782,2]
[328867903,1717925447993,-500.0,0.0001782,2]
[328867905,1717925448004,-776.04,0.0001782,2]
[328867907,1717925448014,-766.73,0.0001782,2]
[328867909,1717925448024,-1357.84738037,0.0001782,3]
[328869540,1717925503925,519.03538488,0.00013363,2]
[328869554,1717925575062,8755.45279935,0.00013363,2]
[328869555,1717925575403,187.35910095,9.999e-05,2]
[328869557,1717925580518,185.35879109,9.999e-05,2]
[328869559,1717925585204,161.15159381,0.00013363,2]
[328869561,1717925750452,161.01767511,0.00013363,2]
[328869562,1717925780477,2094.02049989,0.00013363,2]
[328869563,1717925780524,16189.27952619,0.00013363,2]
[328869564,1717925799664,3623.3915754,0.00013363,2]
[328869565,1717925804233,-2121.07320042,0.00016323,2]
[328869566,1717925804258,-2682.02554865,0.00016323,2]
[328869567,1717925804282,-317.3700773,0.00016324,2]
[328869568,1717925804307,-1342.59061452,0.00016324,2]
[328869569,1717925804331,-241.89760239,0.00016325,2]
[328869570,1717925804354,-1911.02618015,0.00016326,2]
[328869571,1717925804379,-19307.52255734,0.00016326,2]
[328869572,1717925804404,-927.1117103,0.00016328,2]
[328869573,1717925804428,-1149.38250893,0.00016331,2]
[328869574,1717925827017,6735.58523834,0.00013363,2]
[328869575,1717925828410,392.0187229,0.00013363,2]
[328869576,1717925833756,7028.82817246,0.00013363,2]
[328869577,1717925833798,9152.80331843,0.00013363,2]
[328869578,1717925862453,515.61728899,9.999e-05,2]
[328869579,1717925892926,2094.02049989,0.00013363,2]
[328869580,1717925905664,3640.76187512,0.00013363,2]
[328869581,1717925915031,2095.08239938,0.00013363,2]
[328869582,1717925918864,372.64489039,9.999e-05,2]
[328869583,1717925923824,3640.76187512,0.00013363,2]
[328869584,1717925932930,329.5276078,0.00013363,2]
[328869585,1717925937683,16185.40827819,0.00013363,2]
[328869586,1717925939669,3300.53454568,0.00013363,2]
[328869587,1717925940758,155.23267377,0.00013363,2]
[328869588,1717925953683,13097.63390696,0.00013363,2]
[328869589,1717926059571,156.96482514,9.999e-05,2]
[328869590,1717926083618,659.92725719,9.999e-05,2]
[328869591,1717926085912,285.84278041,9.999e-05,2]
[328869592,1717926136829,523.17752712,9.999e-05,2]
[328869599,1717926425200,383.16,0.00010959,2]
[328869609,1717926632731,-1911.02618015,0.00014233,2]
[328869610,1717926632742,-2642.54173153,0.00014234,2]
[328869611,1717926632753,-3071.67952331,0.00014234,2]
[328869612,1717926632764,-2121.07320042,0.00014234,2]
[328869613,1717926632774,-2682.02554865,0.00014235,2]
[328869614,1717926632786,-250.0,0.00014237,2]
[328869615,1717926632796,-1779.68183144,0.00014399,2]
[328869616,1717926632809,-1220.31816856,0.00014399,2]
[328869617,1717926632820,-945.1819549,0.0001459,2]
[328869618,1717926632830,-165.8995785,0.00014625,2]
[328869619,1717926632841,-347.2585269,0.0001471,2]
[328869620,1717926632851,-287.25368192,0.00015,2]
[328869621,1717926632861,-1103.37197472,0.00015,2]
[328869622,1717926632872,-459.50565381,0.00016047,2]
[328869623,1717926632882,-1779.53794223,0.00016047,2]
[328869624,1717926632892,-164.61360188,0.00016072,2]
[328869625,1717926632902,-154.98450155,0.00016072,2]
[328869626,1717926632912,-530.04771568,0.00016072,2]
[328869627,1717926632923,-1281.50835311,0.00016072,2]
[328869628,1717926632933,-522.78978922,0.00016073,2]
[328869629,1717926632943,-24900.0,0.00016074,2]
[328869630,1717926632953,-1289.830172,0.00016147,2]
[328869631,1717926632963,-195.02314914,0.0001633,2]
[328869632,1717926632973,-351.43804953,0.00016331,2]
[328869633,1717926632983,-208.30314043,0.00016331,2]
[328869634,1717926632995,-638.24,0.00016438,2]
[328869635,1717926633005,-500.0,0.00016438,2]
[328869636,1717926633016,-734.78,0.00016438,2]
[328869637,1717926633026,-500.0,0.00016438,2]
[328869638,1717926633036,-459.50565379,0.00016465,2]
[328869639,1717926633046,-500.0,0.00016712,2]
[328869640,1717926633056,-734.78,0.00016712,2]
[328869641,1717926633067,-500.0,0.00016712,2]
[328869642,1717926633077,-500.0,0.00016799,2]
[328869643,1717926633087,-655.34,0.00016799,2]
[328869644,1717926633097,-500.0,0.00016799,2]
[328869645,1717926633108,-500.0,0.00016799,2]
[328869646,1717926633118,-743.7,0.00016799,2]
[328869647,1717926633128,-860.18,0.00016799,2]
[328869648,1717926633139,-586.73,0.00016799,2]
[328869649,1717926633149,-1036.29,0.00016799,2]
[328869650,1717926633159,-168.06593368,0.000168,2]
[328869651,1717926633170,-168.06593366,0.000168,2]
[328869652,1717926633180,-168.06593366,0.000168,2]
[328869653,1717926633190,-837.83743989,0.00016816,2]
[328869654,1717926633200,-155.76320507,0.00016816,2]
[328869655,1717926633210,-186.58168639,0.00016816,2]
[328869656,1717926633221,-185.25020563,0.00016816,2]
[328869657,1717926633231,-157.66978397,0.00016817,2]
[328869658,1717926633241,-459.50565379,0.00016883,2]
[328869659,1717926633252,-598.88462913,0.000169,2]
[328869660,1717926633262,-923.26356169,0.00016928,2]
[328869661,1717926633272,-500.0,0.00016986,2]
[328869662,1717926633282,-734.78,0.00016986,2]
[328869663,1717926633292,-500.0,0.00016986,2]
[328869664,1717926633303,-166.666666,0.00016986,2]
[328869665,1717926633312,-4192.28932461,0.00017,2]
[328869666,1717926633326,-920.54070808,0.00017,2]
[328869671,1717926638659,-500.0,0.00016438,2]
[328869672,1717926638672,-333.5330219,0.00016712,2]
[328869673,1717926638682,-7677.3085881,0.00017,2]
[328869674,1717926638695,-997.0306023,0.00017,2]
[328869675,1717926638708,-1070.44797115,0.00017,2]
[328869704,1717926643305,-500.0,0.00016438,2]
[328869705,1717926643314,-500.0,0.00016712,2]
[328869706,1717926643324,-500.0,0.00016986,2]
[328869707,1717926643335,-166.666666,0.00016986,2]
[328869708,1717926643345,-1348.38280576,0.00017,2]
[328869709,1717926643355,-7417.81419588,0.00017,2]
[328869710,1717926643369,-437.39943845,0.00017,2]
[328869732,1717926643689,-16845.03974174,0.00017,2]
[328869734,1717926643699,-16738.01637823,0.00017,2]
[328869737,1717926643715,-9337.65580778,0.00017,2]
[328869738,1717926643731,-1553.59479278,0.00017,2]
[328869739,1717926643746,-13366.92379203,0.00017,2]
[328869740,1717926643762,-28744.80922918,0.00017,2]
[328869741,1717926643772,-151.0,0.00017,2]
[328869742,1717926643782,-151.0,0.00017,2]
[328869743,1717926643793,-151.0,0.00017,2]
[328869744,1717926643802,-151.0,0.00017,2]
[328869745,1717926643812,-152.569092,0.00017,2]
[328869746,1717926643822,-151.0,0.00017,2]
[328869747,1717926643832,-151.0,0.00017,2]
[328869748,1717926643842,-1245.176606,0.00017,2]
[328869749,1717926643853,-151.0,0.00017,2]
[328869750,1717926643863,-158.356531,0.00017,2]
[328869751,1717926643873,-499.4598699,0.00017014,2]
[328869752,1717926643883,-153.0,0.00017068,2]
[328869753,1717926643893,-655.34,0.00017073,2]
[328869754,1717926643903,-500.0,0.00017073,2]
[328869755,1717926643912,-500.0,0.00017073,2]
[328869756,1717926643922,-743.7,0.00017073,2]
[328869757,1717926643932,-860.18,0.00017073,2]
[328869758,1717926643941,-586.73,0.00017073,2]
[328869759,1717926643952,-1036.29,0.00017073,2]
[328869760,1717926643961,-153.0,0.00017078,2]
[328869761,1717926643971,-153.0,0.00017178,2]
[328869762,1717926643980,-306.0,0.00017178,2]
[328869763,1717926643990,-313.9867788,0.00017178,2]
[328869764,1717926644000,-153.0,0.00017179,2]
[328869765,1717926644010,-153.0,0.00017179,2]
[328869766,1717926644019,-153.0,0.00017179,2]
[328869767,1717926644029,-153.0,0.00017179,2]
[328869768,1717926644038,-153.0,0.00017186,2]
[328869769,1717926644048,-153.0,0.00017186,2]
[328869770,1717926644058,-153.0,0.00017186,2]
[328869771,1717926644068,-153.0,0.00017186,2]
[328869772,1717926644078,-500.0,0.0001726,2]
[328869773,1717926644088,-734.78,0.0001726,2]
[328869774,1717926644098,-500.0,0.0001726,2]
[328869775,1717926644108,-500.0,0.0001726,2]
[328869776,1717926644119,-153.0,0.000173,2]
[328869777,1717926644129,-459.50565379,0.00017301,2]
[328869778,1717926644140,-655.34,0.00017347,2]
[328869779,1717926644150,-500.0,0.00017347,2]
[328869780,1717926644160,-500.0,0.00017347,2]
[328869781,1717926644170,-682.10944368,0.00017347,2]
[328869782,1717926644193,-61.59055632,0.00017347,2]
[328869783,1717926644203,-584.95559831,0.00017347,2]
[328869784,1717926644478,-275.22440169,0.00017347,2]
[328869785,1717926644488,-586.73,0.00017347,2]
[328869786,1717926644498,-1036.29,0.00017347,2]
[328869787,1717926644508,-500.0,0.00017534,2]
[328869788,1717926644519,-4097.82,0.00017534,3]
[328869789,1717926644529,-4097.82,0.00017534,3]
[328869790,1717926644539,-4097.82,0.00017534,3]
[328869791,1717926644551,-734.78,0.00017534,2]
[328869792,1717926644562,-151.0,0.00017534,2]
[328869793,1717926644572,-151.0,0.00017534,2]
[328869794,1717926644582,-500.0,0.00017534,2]
[328869795,1717926644592,-19526.17205955,0.00017621,7]
[328869796,1717926644602,-655.34,0.00017621,2]
[328869797,1717926644612,-500.0,0.00017621,2]
[328869798,1717926644622,-500.0,0.00017621,2]
[328869799,1717926644632,-743.7,0.00017621,2]
[328869800,1717926644643,-860.18,0.00017621,2]
[328869801,1717926644653,-4097.82,0.00017621,3]
[328869802,1717926644663,-586.73,0.00017621,2]
[328869803,1717926644673,-247.107976,0.00017621,2]
[328869804,1717926644683,-1036.29,0.00017621,2]
[328869805,1717926644696,-4238.41830585,0.00017655,2]
[328869806,1717926644709,-459.50565379,0.00017719,2]
[328869807,1717926644722,-2112.86517201,0.00017796,2]
[328869808,1717926644735,-151.0,0.00017796,2]
[328869809,1717926644748,-1840.91457227,0.000178,2]
[328869810,1717926644762,-500.0,0.00017808,2]
[328869811,1717926644775,-734.78,0.00017808,2]
[328869812,1717926644786,-500.0,0.00017808,2]
[328869813,1717926644797,-175.419906,0.00017808,2]
[328869814,1717926644808,-175.419906,0.00017808,2]
[328869815,1717926644821,-175.419906,0.00017808,2]
[328869816,1717926644833,-175.419906,0.00017808,2]
[328869817,1717926644845,-2036.10483651,0.00017812,2]
[328869818,1717926644857,-155.98816922,0.00017812,2]
[328869819,1717926644869,-200.33886083,0.00017812,2]
[328869820,1717926644882,-156.86319981,0.00017812,2]
[328869821,1717926644893,-285.69382129,0.00017812,2]
[328869822,1717926644906,-659.55397897,0.00017812,2]
[328869823,1717926644918,-763.87420657,0.00017813,7]
[328869824,1717926644929,-302.09026217,0.00017814,2]
[328869825,1717926644941,-9585.69744994,0.00017814,2]
[328869826,1717926644953,-411.42673703,0.00017814,2]
[328869827,1717926644967,-546.20050588,0.00017814,2]
[328869828,1717926644979,-500.0,0.00017814,2]
[328869829,1717926644993,-151.0,0.00017814,2]
[328869830,1717926645005,-175.419906,0.00017814,2]
[328869831,1717926645017,-175.419906,0.00017814,2]
[328869832,1717926645029,-175.419906,0.00017814,2]
[328869833,1717926645040,-175.419906,0.00017814,2]
[328869834,1717926645052,-172.8126878,0.00017815,2]
[328869835,1717926645064,-282.36642828,0.00017815,2]
[328869836,1717926645075,-547.80771904,0.00017815,2]
[328869837,1717926645087,-504.74372089,0.00017815,2]
[328869838,1717926645099,-230.778102,0.00017815,2]
[328869839,1717926645111,-151.0,0.00017815,2]
[328869840,1717926645123,-151.0,0.00017815,2]
[328869841,1717926645135,-151.0,0.00017815,2]
[328869842,1717926645145,-155.50367802,0.00017816,2]
[328869843,1717926645157,-12040.97822685,0.00017816,2]
[328869844,1717926645169,-151.0,0.00017816,2]
[328869845,1717926645179,-151.0,0.00017816,2]
[328869846,1717926645190,-151.0,0.00017816,2]
[328869847,1717926645200,-175.419906,0.00017816,2]
[328869848,1717926645210,-175.419906,0.00017816,2]
[328869849,1717926645222,-65011.13080745,0.00017817,2]
[328869850,1717926645232,-151.0,0.00017817,2]
[328869851,1717926645243,-151.0,0.00017817,2]
[328869852,1717926645255,-151.0,0.00017817,2]
[328869853,1717926645267,-151.0,0.00017817,2]
[328869854,1717926645279,-151.0,0.00017817,2]
[328869855,1717926645291,-175.419906,0.00017817,2]
[328869856,1717926645303,-175.419906,0.00017817,2]
[328869857,1717926645315,-7916.02523066,0.00017819,2]
[328869858,1717926645326,-1441.62192764,0.00017819,2]
[328869859,1717926645339,-30708.2327957,0.00017819,2]
[328869860,1717926645351,-320.70650652,0.00017819,2]
[328869861,1717926645362,-8214.19947855,0.00017819,2]
[328869862,1717926645373,-272.22547088,0.00017819,2]
[328869863,1717926645385,-155.73528295,0.00017819,2]
[328869864,1717926645396,-211.056485,0.00017819,2]
[328869865,1717926645407,-500.0,0.00017819,2]
[328869866,1717926645417,-526.01666623,0.00017819,2]
[328869867,1717926645427,-489.56838451,0.00017819,2]
[328869868,1717926645437,-151.0,0.00017819,2]
[328869869,1717926645448,-151.0,0.00017819,2]
[328869870,1717926645458,-151.0,0.00017819,2]
[328869871,1717926645469,-151.0,0.00017819,2]
[328869872,1717926645481,-503.42359992,0.00017819,2]
[328869873,1717926645492,-608.07,0.00017819,2]
[328869874,1717926645505,-262.27845265,0.00017819,2]
[328869875,1717926645517,-151.0,0.00017819,2]
[328869876,1717926645529,-151.0,0.00017819,2]
[328869877,1717926645541,-372.36696619,0.00017819,2]
[328869878,1717926645556,-151.0,0.00017819,2]
[328869879,1717926645567,-151.0,0.00017819,2]
[328869880,1717926645579,-151.0,0.00017819,2]
[328869881,1717926645591,-175.419906,0.00017819,2]
[328869882,1717926645605,-175.419906,0.00017819,2]
[328869883,1717926645617,-175.419906,0.00017819,2]
[328869884,1717926645632,-175.419906,0.00017819,2]
[328869885,1717926645645,-10539.6485585,0.00017823,2]
[328869886,1717926645656,-155.06173504,0.00017823,2]
[328869887,1717926645669,-297.04799949,0.00017823,2]
[328869888,1717926645681,-155.18180291,0.00017823,2]
[328869889,1717926645693,-155.10772152,0.00017823,2]
[328869890,1717926645706,-155.07510765,0.00017823,2]
[328869891,1717926645717,-155.04224631,0.00017823,2]
[328869892,1717926645728,-151.0,0.00017823,2]
[328869893,1717926645739,-151.0,0.00017823,2]
[328869894,1717926645750,-276.093218,0.00017823,2]
[328869895,1717926645760,-279.077477,0.00017823,2]
[328869896,1717926645772,-175.419906,0.00017823,2]
[328869897,1717926645783,-175.419906,0.00017823,2]
[328869898,1717926645794,-610.902,0.00017841,2]
[328869899,1717926645805,-150.0,0.00017841,2]
[328869900,1717926645816,-1779.53794217,0.00017861,2]
[328869901,1717926645827,-154.457605,0.0001789,2]
[328869902,1717926645838,-655.34,0.00017895,2]
[328869903,1717926645849,-500.0,0.00017895,2]
[328869904,1717926645860,-516.05861177,0.00017895,2]
[328869905,1717926645872,-743.7,0.00017895,2]
[328869906,1717926645883,-860.18,0.00017895,2]
[328869907,1717926645895,-4097.82,0.00017895,3]
[328869908,1717926645907,-586.73,0.00017895,2]
[328869909,1717926645919,-1036.29,0.00017895,2]
[328869910,1717926645930,-155.12904918,0.00017896,2]
[328869911,1717926645941,-190.37021129,0.00017896,2]
[328869912,1717926645953,-151.0,0.00017896,3]
[328869913,1717926645964,-1199.8219045,0.00017898,2]
[328869914,1717926645976,-151.0,0.000179,2]
[328869915,1717926645989,-151.0,0.000179,2]
[328869916,1717926646001,-151.0,0.000179,2]
[328869917,1717926646014,-223.31132,0.000179,2]
[328869918,1717926646025,-56268.89604578,0.000179,2]
[328869924,1717926647897,-333.06925249,0.00016999,2]
[328869925,1717926647908,-2317.42282391,0.00016999,2]
[328869926,1717926647919,-2401.76653605,0.00016999,2]
[328869927,1717926647929,-691.99456651,0.000179,2]
[328869929,1717926970835,597.24,0.00010959,2]
[328869930,1717927045571,-1103.37197472,0.00016335,2]
[328869931,1717927045595,-2642.54173153,0.00016336,2]
[328869932,1717927045618,-1334.65345668,0.00016338,2]
[328869933,1717927045641,-238.8015218,0.00016414,2]
[328869934,1717927045664,-945.46842875,0.00016415,2]
[328869935,1717927045692,-20735.16288652,0.00016416,2]
[328869936,1717927144072,1441.96072993,9.999e-05,2]
[328869937,1717927162035,272.51996637,9.999e-05,2]
[328869938,1717927223568,-1911.02618015,0.00015165,2]
[328869939,1717927223593,-3071.67952331,0.00015166,2]
[328869940,1717927223621,-2642.54173153,0.00015167,2]
[328869941,1717927223646,-6002.0527302,0.0001517,2]
[328869942,1717927223671,-3000.0,0.00015791,2]
[328869943,1717927223694,-1441.96072993,0.00015996,2]
[328869944,1717927223720,-272.51996637,0.00015996,2]
[328869945,1717927223749,-3982.6339454,0.00015996,2]
[328869946,1717927223776,-1982.90053047,0.00015997,2]
[328869947,1717927223802,-200.33886083,0.00015998,2]
[328869948,1717927223829,-282.36642828,0.00015998,2]
[328869949,1717927223854,-2120.4704466,0.00015998,2]
[328869950,1717927223880,-317.3700773,0.00015998,2]
[328869951,1717927223910,-2686.52442558,0.00015998,2]
[328869952,1717927223936,-9585.69744994,0.00015998,2]
[328869953,1717927223959,-309.89153874,0.00015998,2]
[328869954,1717927223988,-238.8015218,0.00015998,2]
[328869955,1717927224015,-4951.22391357,0.00015999,2]
[328869956,1717927287897,-11096.82477865,0.00015997,2]
[328869957,1717927287923,-1913.12635887,0.00015998,2]
[328869958,1717927287950,-1441.96072993,0.00015998,2]
[328869959,1717927287976,-817.20038408,0.00015998,2]
[328869960,1717927288004,-272.29905279,0.00015998,2]
[328869961,1717927288034,-3069.93965249,0.00015998,2]
[328869962,1717927288062,-26881.23399159,0.00015998,2]
[328869963,1717927288087,-15000.0,0.00016,2]
[328869964,1717927288113,-1507.4150516,0.00016416,2]
[328869966,1717927357499,-2036.71564508,0.00016399,2]
[328869967,1717927357528,-1261.12295841,0.000164,2]
[328869968,1717927357556,-3070.8095879,0.00016414,2]
[328869969,1717927357593,-7916.02523066,0.00016415,2]
[328869970,1717927357624,-2657.42206188,0.00016416,2]
[328869971,1717927357652,-500.0,0.00016438,2]
[328869972,1717927357678,-500.0,0.00016438,2]
[328869973,1717927357709,-551.09,0.00016438,2]
[328869974,1717927357737,-500.0,0.00016438,2]
[328869975,1717927357768,-500.0,0.00016438,2]
[328869976,1717927357796,-411.42673703,0.00016497,2]
[328869977,1717927357821,-187.78108932,0.00016497,2]
[328869978,1717927357849,-3897.60227571,0.00016498,2]
[328869979,1717927357876,-1440.60552077,0.00016499,2]
[328869980,1717927357901,-18569.39889324,0.00016499,2]
[328869981,1717927361637,553.16,0.00010959,2]
[328869982,1717927390750,2000.0,0.00013529,2]
[328869983,1717927405427,154.98450155,9.999e-05,2]
[328869984,1717927410619,759.89577893,9.999e-05,2]
[328869985,1717927418479,154.98450155,9.999e-05,2]
[328869986,1717927437113,-1528.316114,0.00015469,2]
[328869987,1717927437138,-154.98450155,0.0001555,2]
[328869988,1717927437164,-154.98450155,0.0001555,2]
[328869989,1717927437190,-154.98450155,0.00015551,2]
[328869990,1717927437214,-735.21963898,0.00015551,2]
[328869991,1717927437238,-16271.51074237,0.00015551,2]
[328869992,1717927499158,-2036.71564508,0.00015549,2]
[328869993,1717927499182,-165.27091373,0.00015549,2]
[328869994,1717927499205,-154.98450155,0.0001555,2]
[328869995,1717927499229,-241.08398299,0.0001555,2]
[328869996,1717927499255,-18201.94495665,0.0001555,2]
[328870038,1717927833853,-476.14397417,0.00014768,2]
[328870039,1717927834025,-462.228,0.00014768,2]
[328870080,1717927841192,-1000.44654106,0.00014768,2]
[328870081,1717927841456,-280.86267126,0.00014768,2]
[328870096,1717927844987,-293.85202921,0.00014768,2]
[328870097,1717927844998,-219.9627533,0.00015226,2]
[328870098,1717927845008,-1103.4825886,0.00015452,2]
[328870099,1717927845018,-13540.23177606,0.00015548,2]
[328870100,1717927845031,-5767.29078128,0.00015548,2]
[328870101,1717927845042,-2034.88321937,0.00015549,2]
[328870102,1717927845052,-30.30198435,0.00015549,2]
[328870103,1717927845066,-124.6825172,0.00015549,2]
[328870104,1717927845075,-5696.55182195,0.00015551,2]
[328870110,1717927847866,-1910.2758699,0.00015551,2]
[328870111,1717927847985,-6092.9,0.00015551,2]
[328870112,1717927848781,-24612.4937759,0.00015551,2]
[328870113,1717927848791,-4015.86749483,0.00015552,2]
[328870114,1717927865585,607.12,0.00010959,2]
[328870126,1717927962805,154.98450155,9.999e-05,2]
[328870127,1717927984832,774.49408999,9.999e-05,2]
[328870129,1717928106758,274.0,0.00014,2]
[328870131,1717928139660,692.46643816,9.999e-05,2]
[328870141,1717928313724,929.0489554,0.00013699,2]
[328870143,1717928363667,-894.355845,0.00014381,2]
[328870144,1717928363705,-238.69345719,0.00014444,2]
[328870145,1717928363726,-894.355845,0.00014444,2]
[328870146,1717928363738,-71.19142006,0.00014444,2]
[328870147,1717928363749,-167.50203713,0.00014539,2]
[328870148,1717928363761,-733.90139562,0.00014539,2]
[328870149,1717928400118,155.14120587,0.00014536,7]
[328870150,1717928420564,-252.32412823,0.00014537,2]
[328870151,1717928420589,-19307.52255734,0.00014537,2]
[328870152,1717928420614,-42100.06295128,0.00014538,2]
[328870153,1717928420637,-522.98365817,0.00014544,2]
[328870154,1717928420661,-692.0586622,0.00014544,2]
[328870155,1717928420684,-22125.04804278,0.00014548,2]
[328870156,1717928477340,1441.96072993,9.999e-05,2]
[328870159,1717928513152,411.5321918,9.999e-05,2]
[328870160,1717928553304,242.38087524,9.999e-05,2]
[328870161,1717928554990,2121.07320042,9.999e-05,2]
[328870162,1717928600477,927.3752309,9.999e-05,2]
[328870163,1717928616406,317.46618636,9.999e-05,2]
[328870164,1717928818306,-2642.54173153,0.00014013,2]
[328870165,1717928818333,-2682.02554865,0.00014014,2]
[328870166,1717928818359,-2036.71564508,0.00014014,2]
[328870167,1717928818385,-2121.07320042,0.00014014,2]
[328870168,1717928818412,-3071.67952331,0.00014015,2]
[328870169,1717928818439,-1169.32590877,0.00014019,2]
[328870170,1717928818465,-22253.39191439,0.00014056,2]
[328870171,1717928844055,-2642.16842245,0.00014055,2]
[328870172,1717928844080,-2682.02554865,0.00014055,2]
[328870173,1717928844105,-2400.89660064,0.00014055,2]
[328870174,1717928844130,-2646.60808561,0.00014056,2]
[328870175,1717928844156,-447.177922,0.00014119,2]
[328870176,1717928844180,-521.5832114,0.00014664,2]
[328870178,1717928875536,292.43631508,0.00011658,2]
[328870179,1717928892944,1103.37197472,0.00015,2]
[328870180,1717928906690,9944.65150095,0.00014664,2]
[328870181,1717928925158,-1226.8528699,0.00014664,2]
[328870182,1717928968966,-190.95476576,0.00015447,2]
[328870183,1717928968993,-1139.36731797,0.00015447,2]
[328870184,1717928969019,-411.37544008,0.00015544,2]
[328870185,1717928969044,-1149.38250893,0.00015544,2]
[328870186,1717928969068,-1342.59061452,0.00015544,2]
[328870187,1717928969092,-1911.02618015,0.00015544,2]
[328870188,1717928969116,-200.33886083,0.00015544,2]
[328870189,1717928969141,-241.41432954,0.00015544,2]
[328870190,1717928969168,-282.36642828,0.00015544,2]
[328870191,1717928969192,-926.8481897,0.00015544,2]
[328870192,1717928969216,-317.27396824,0.00015544,2]
[328870193,1717928969240,-481.64559951,0.00015544,2]
[328870194,1717928969264,-2036.10483651,0.00015544,2]
[328870195,1717928969289,-2321.92170084,0.00015544,2]
[328870196,1717928969317,-334.60045454,0.00015544,2]
[328870197,1717928969343,-155.22528963,0.00015545,2]
[328870198,1717928969368,-773.959596,0.00015545,2]
[328870199,1717928969396,-272.44632851,0.00015546,2]
[328870200,1717928969422,-42074.51315166,0.00015546,2]
[328870201,1717928969448,-3897.60227571,0.00015547,2]
[328870202,1717928969476,-187.78108932,0.00015547,2]
[328870203,1717928969504,-1440.26671848,0.00015547,2]
[328870204,1717928969531,-945.46842875,0.00015547,2]
[328870205,1717928969558,-7916.02523066,0.00015547,2]
[328870206,1717928969583,-238.8015218,0.00015547,2]
[328870207,1717928969608,-204.98459012,0.00015548,2]
[328870208,1717928969635,-190.95476573,0.00015549,2]
[328870209,1717928969661,-195.61891732,0.00015549,2]
[328870210,1717928969686,-155.41743058,0.00015549,2]
[328870211,1717928969711,-256.54869851,0.00015549,2]
[328870212,1717928969735,-192.22295268,0.00015549,2]
[328870213,1717928969760,-32941.16455841,0.0001555,2]
[328870214,1717928969786,-155.56663654,0.0001555,2]
[328870215,1717928969813,-59558.09165776,0.00015551,2]